bitfinex-derivatives/quotes_SOLF0:USTF0_20240902
["timestamp","ask_amount","ask_price","bid_price","bid_amount"]
[1725296199042,3.84688932,131.85,131.83,7.63541565]
[1725296202152,3.84688932,131.85,131.84,11.64]
[1725296203852,3.84688932,131.85,131.83,15.48291565]
[1725296204755,0.05488932,131.85,131.83,15.48291565]
[1725296205458,3.84688932,131.85,131.83,19.27531565]
[1725296206753,3.84688932,131.85,131.83,15.48291565]
[1725296207252,3.84688932,131.85,131.83,19.27541565]
[1725296209058,0.05488932,131.85,131.82,0.05604113]
[1725296209357,3.7925,131.83,131.82,0.05604113]
[1725296213456,3.7924,131.84,131.82,11.69604113]
[1725296213756,0.05488932,131.85,131.83,11.64]
[1725296214158,0.05488932,131.85,131.82,0.05604113]
[1725296214459,0.05488932,131.85,131.82,11.69604113]
[1725296214860,3.7922,131.84,131.82,11.69604113]
[1725296216162,3.84698932,131.85,131.83,11.64]
[1725296217072,0.05488932,131.85,131.82,11.69604113]
[1725296217760,3.7922,131.84,131.82,11.69604113]
[1725296218058,0.05488932,131.85,131.82,11.69604113]
[1725296219355,3.7925,131.83,131.82,11.69604113]
[1725296220564,0.05488932,131.85,131.82,11.69604113]
[1725296220565,3.7923,131.84,131.82,11.69604113]
[1725296220955,0.05488932,131.85,131.83,11.64]
[1725296221458,3.84708932,131.85,131.83,11.64]
[1725296228464,0.05488932,131.85,131.83,15.4325]
[1725296229165,0.05488932,131.85,131.84,15.4322]
[1725296230967,0.05488932,131.85,131.82,0.05604113]
[1725296231166,0.05488932,131.85,131.82,11.69604113]
[1725296231668,3.84698932,131.85,131.82,15.48864113]
[1725296232372,3.84698932,131.85,131.83,11.64]
[1725296233675,0.05488932,131.85,131.83,15.4325]
[1725296234569,0.05488932,131.85,131.84,15.4322]
[1725296234871,0.05488932,131.85,131.82,0.05604113]
[1725296235070,3.7925,131.83,131.82,0.05604113]
[1725296237870,15.4325,131.83,131.82,0.05604113]
[1725296239281,3.7925,131.83,131.82,0.05604113]
[1725296240072,0.05488932,131.85,131.82,0.05604113]
[1725296240775,3.7925,131.83,131.82,0.05604113]
[1725296246482,3.7937,131.8,131.76,15.4344]
[1725296247089,3.7937,131.8,131.77,3.7942]
[1725296247580,3.8473734,131.8,131.77,3.83885992]
[1725296251488,3.8473734,131.8,131.77,0.04465992]
[1725296255286,3.7937,131.79,131.77,0.04465992]
[1725296255589,0.0536734,131.8,131.77,0.04465992]
[1725296255590,3.85660161,131.8,131.77,0.04465992]
[1725296255792,0.0536734,131.8,131.77,0.04465992]
[1725296256389,3.794,131.78,131.77,0.04465992]
[1725296256686,11.64,131.79,131.66,70.43189187]
[1725296256889,3.795,131.75,131.72,15.4356]
[1725296257096,11.64,131.79,131.72,11.64]
[1725296257282,11.64,131.79,131.72,15.51700128]
[1725296257487,3.84057971,131.8,131.73,11.64]
[1725296257795,0.05740922,131.78,131.75,11.64]
[1725296258088,0.05569581,131.78,131.75,11.64]
[1725296258294,0.05569581,131.78,131.77,11.64]
[1725296263889,0.05569581,131.78,131.77,15.4343]
[1725296264096,15.48589119,131.87,131.77,11.64]
[1725296264286,3.7925,131.84,131.81,11.64]
[1725296265388,3.84727513,131.84,131.81,11.69330405]
[1725296265792,0.05477513,131.84,131.81,0.05330405]
[1725296266695,3.7928,131.83,131.81,0.05330405]
[1725296267087,0.05477513,131.84,131.81,0.05330405]
[1725296267398,3.7928,131.82,131.81,0.05330405]
[1725296268193,3.7926,131.83,131.81,0.05330405]
[1725296270101,3.84717513,131.84,131.81,3.84640405]
[1725296270801,3.84717513,131.84,131.81,0.05330405]
[1725296271402,3.84717513,131.84,131.81,3.84620405]
[1725296271700,0.05477513,131.84,131.82,11.64]
[1725296272699,225.0,131.89,131.82,11.64]
[1725296272904,225.0,131.89,131.86,11.64]
[1725296273108,96.5296965,131.9,131.86,15.4316]
[1725296273797,0.0561544,131.89,131.87,0.05080168]
[1725296275198,3.8470544,131.89,131.87,0.05080168]
[1725296275393,0.0561544,131.89,131.87,0.05080168]
[1725296275592,11.64,131.88,131.87,0.05080168]
[1725296275803,11.64,131.88,131.68,11.10539417]
[1725296276003,11.64,131.8,131.71,2.777]
[1725296276204,15.40839071,131.8,131.73,11.64]
[1725296276406,3.794,131.78,131.73,11.64]
[1725296276902,0.05237061,131.77,131.74,3.85335618]
[1725296277592,0.05237061,131.77,131.74,0.05825618]
[1725296279004,3.7946,131.76,131.74,0.05825618]
[1725296280206,0.05237061,131.77,131.74,3.85325618]
[1725296281998,3.84677061,131.77,131.74,3.85325618]
[1725296282801,0.05237061,131.77,131.74,0.05825618]
[1725296283306,3.84677061,131.77,131.74,3.85335618]
[1725296290202,3.84677061,131.77,131.75,3.7948]
[1725296290407,0.05237061,131.77,131.75,3.7948]
[1725296290601,1.4094,131.85,131.75,3.7948]
[1725296290602,7.581,131.91,131.76,29.16]
[1725296290906,3.7919,131.86,131.82,32.9528]
[1725296291100,3.81846199,131.88,131.82,29.16]
[1725296291302,29.16,131.91,131.83,3.7924]
[1725296291701,3.7915,131.87,131.85,0.04775476]
[1725296291908,0.05215794,131.88,131.85,0.04775476]
[1725296292114,3.7917,131.86,131.85,0.04775476]
[1725296292312,29.16,131.87,131.78,29.16]
[1725296292508,29.16,131.87,131.79,3.7935]
[1725296292711,3.7927,131.83,131.79,3.7935]
[1725296293409,0.055751,131.82,131.8,0.05532876]
[1725296297316,0.055751,131.82,131.8,3.84862876]
[1725296298413,0.055751,131.82,131.81,3.7931]
[1725296301412,0.055751,131.82,131.8,3.84852876]
[1725296302914,0.055751,131.82,131.8,0.05532876]
[1725296303717,3.7931,131.81,131.8,0.05532876]
[1725296305214,3.7941,131.78,131.74,29.16]
[1725296305422,3.7941,131.78,131.75,3.7947]
[1725296306407,3.84333376,131.78,131.75,3.7947]
[1725296307416,3.7943,131.77,131.75,3.7947]
[1725296310617,0.04923376,131.78,131.76,29.16]
[1725296310819,0.04923376,131.78,131.73,32.88040971]
[1725296310820,0.04923376,131.78,131.77,29.16]
[1725296311211,0.04923376,131.78,131.77,32.9543]
[1725296311624,29.16,131.87,131.75,1.4731]
[1725296311812,29.16,131.87,131.78,29.16]
[1725296312322,33.3858,131.89,131.8,29.16]
[1725296312519,0.05016735,131.86,131.83,0.05360944]
[1725296314022,3.7922,131.84,131.83,0.05360944]
[1725296315324,29.16,131.85,131.75,1.4731]
[1725296315526,1.3959,131.83,131.75,30.6331]
[1725296315727,5.16951353,131.83,131.75,30.6331]
[1725296316025,30.5559,131.83,131.75,29.16]
[1725296316228,29.16,131.81,131.69,1.3317]
[1725296316427,29.16,131.79,131.69,1.3317]
[1725296316620,30.4956,131.78,131.69,5.13528091]
[1725296316815,0.04904778,131.76,131.69,5.13528091]
[1725296317029,3.7835866,131.76,131.69,5.13528091]
[1725296317330,3.7953,131.74,131.7,3.7962]
[1725296317624,30.4956,131.78,131.7,3.7962]
[1725296317625,0.05515685,131.73,131.7,3.7962]
[1725296318726,0.05515685,131.73,131.71,3.796]
[1725296321125,0.05515685,131.73,131.72,3.7957]
[1725296321327,0.05515685,131.73,131.72,32.9557]
[1725296325032,1.4225,131.81,131.72,29.16]
[1725296325233,1.4225,131.81,131.75,29.16]
[1725296326027,3.8488238,131.79,131.77,0.05185705]
[1725296326824,0.0549238,131.79,131.78,3.794]
[1725296327034,0.0549238,131.79,131.78,32.954]
[1725296327227,1.4302,131.86,131.78,29.16]
[1725296327427,3.7927,131.83,131.8,3.7933]
[1725296327730,1.4302,131.86,131.78,29.16]
[1725296327934,5.27203363,131.86,131.79,3.7935]
[1725296328234,1.4302,131.86,131.79,3.7935]
[1725296328534,3.7928,131.82,131.81,0.05721392]
[1725296328730,0.05354217,131.84,131.81,0.05721392]
[1725296329239,3.7928,131.82,131.81,0.05721392]
[1725296329841,3.7928,131.83,131.81,0.05721392]
[1725296330639,0.05354217,131.84,131.81,0.05721392]
[1725296331931,3.7928,131.82,131.81,0.05721392]
[1725296334436,29.16,131.83,131.73,1.3682]
[1725296334643,29.16,131.83,131.74,30.5138]
[1725296334840,3.7933,131.81,131.76,29.16]
[1725296335142,2.7902,131.83,131.76,29.16]
[1725296335330,3.7921,131.85,131.79,29.16]
[1725296335532,3.88665503,131.87,131.81,29.16]
[1725296335738,2.7859,131.89,131.81,29.16]
[1725296335936,3.7924,131.84,131.8,3.7933]
[1725296336140,2.7859,131.89,131.79,29.16]
[1725296336446,0.05574879,131.85,131.78,1.4188]
[1725296336634,0.05574879,131.85,131.79,29.16]
[1725296336940,29.16,131.84,131.8,0.0574474]
[1725296337151,29.16,131.82,131.8,0.0574474]
[1725296337736,3.7931,131.81,131.8,0.0574474]
[1725296347355,29.21575542,131.82,131.66,70.43189187]
[1725296347552,29.16,131.8,131.7,33.2471]
[1725296347857,32.94253281,131.8,131.7,33.2471]
[1725296348054,3.7942,131.78,131.74,3.7949]
[1725296348558,0.05730008,131.77,131.74,3.7949]
[1725296351252,3.85160008,131.77,131.74,3.7949]
[1725296352051,3.7946,131.76,131.74,3.7949]
[1725296353355,3.7946,131.76,131.73,3.7953]
[1725296353560,3.85188615,131.76,131.73,3.7953]
[1725296355064,3.7948,131.75,131.73,3.7953]
[1725296355260,0.05728615,131.76,131.7,4.0871]
[1725296355461,0.05728615,131.76,131.7,33.2471]
[1725296356357,3.7949,131.75,131.73,3.7954]
[1725296357967,3.85198615,131.76,131.74,3.795]
[1725296358268,0.05728615,131.76,131.74,3.795]
[1725296359681,0.05728615,131.76,131.75,3.7948]
[1725296362261,30.5148,131.83,131.77,3.7942]
[1725296362262,1.3548,131.83,131.77,3.7942]
[1725296362456,1.4246,131.84,131.77,3.7942]
[1725296362668,3.7935,131.8,131.77,3.7942]
[1725296363163,3.7935,131.8,131.78,3.7939]
[1725296363369,0.05649646,131.8,131.78,3.7939]
[1725296365069,0.05649646,131.8,131.79,3.7937]
[1725296365564,0.05649646,131.8,131.77,0.04997655]
[1725296365967,0.05649646,131.8,131.78,29.16]
[1725296366367,3.7921,131.85,131.79,29.16]
[1725296366665,3.77417886,131.87,131.79,29.16]
[1725296366968,1.4028,131.88,131.81,3.7929]
[1725296367366,0.05307544,131.86,131.83,0.05034164]
[1725296369468,0.05307544,131.86,131.84,3.7921]
[1725296371671,3.84477544,131.86,131.83,3.84274164]
[1725296371861,3.84477544,131.86,131.83,0.05034164]
[1725296372467,0.05307544,131.86,131.83,0.05034164]
[1725296373369,0.05307544,131.86,131.84,3.7922]
[1725296375781,3.84487544,131.86,131.83,3.84274164]
[1725296379480,3.7922,131.85,131.83,0.05034164]
[1725296380279,3.7922,131.84,131.83,0.05034164]
[1725296380875,32.9522,131.84,131.83,0.05034164]
[1725296384090,3.7922,131.84,131.83,0.05034164]
[1725296385884,0.05307544,131.86,131.83,0.05034164]
[1725296386287,0.05307544,131.86,131.83,3.84284164]
[1725296387083,3.84487544,131.86,131.83,3.84284164]
[1725296387796,0.05307544,131.86,131.84,3.7921]
[1725296388186,0.05307544,131.86,131.83,0.05034164]
[1725296388392,0.05307544,131.86,131.84,3.7922]
[1725296389693,0.05307544,131.86,131.83,0.05034164]
[1725296389694,3.84477544,131.86,131.83,3.84274164]
[1725296390100,0.05307544,131.86,131.83,3.84274164]
[1725296391203,0.05307544,131.86,131.84,3.7921]
[1725296392204,1.4357,131.92,131.83,0.05034164]
[1725296392205,7.5765,131.98,131.85,29.16]
[1725296392397,29.16,131.97,131.88,29.16]
[1725296392598,29.16,131.95,131.86,29.16]
[1725296392803,3.7905,131.91,131.87,3.7911]
[1725296393197,3.7908,131.89,131.88,0.05284262]
[1725296393401,3.81514697,131.9,131.87,0.05230431]
[1725296394003,3.7911,131.88,131.87,0.05230431]
[1725296394304,3.81514697,131.9,131.87,0.05230431]
[1725296394504,3.791,131.89,131.87,0.05230431]
[1725296395703,7.60574697,131.9,131.87,0.05230431]
[1725296395904,2.7506,132.01,131.87,30.60040431]
[1725296396106,3.7895,131.94,131.9,3.7903]
[1725296396810,7.53029407,131.95,131.91,3.7901]
[1725296397008,0.05617412,131.93,131.91,3.84269667]
[1725296397306,2.7506,132.01,131.92,3.7898]
[1725296397603,29.16,131.99,131.92,3.7898]
[1725296398100,3.7885,131.97,131.92,3.7898]
[1725296398308,29.16,131.99,131.92,3.7898]
[1725296398497,29.16,131.99,131.93,0.05064495]
[1725296398704,0.05413196,131.96,131.93,0.05064495]
[1725296399201,1.46413196,131.96,131.93,0.05064495]
[1725296399609,3.7891,131.95,131.93,0.05064495]
[1725296399809,3.78089556,131.94,131.93,0.05064495]
[1725296400911,29.16,131.94,131.73,11.3859]
[1725296401111,3.85641062,131.93,131.87,29.16]
[1725296401410,3.7893,131.95,131.89,29.16]
[1725296401607,1.41,131.96,131.89,29.16]
[1725296401811,225.0,131.98,131.91,29.16]
[1725296402009,3.789,131.96,131.93,3.7896]
[1725296402213,30.6105,132.0,131.93,3.83928386]
[1725296402409,0.05430421,131.96,131.93,3.83928386]
[1725296402608,0.05430421,131.96,131.93,0.04968386]
[1725296403105,3.84320421,131.96,131.93,0.04968386]
[1725296403314,0.05430421,131.96,131.94,3.7894]
[1725296403608,0.05430421,131.96,131.93,29.20968386]
[1725296403808,0.05430421,131.96,131.93,0.04968386]
[1725296404010,3.7894,131.94,131.93,0.04968386]
[1725296405105,1.3688,131.95,131.93,0.04968386]
[1725296406015,3.7894,131.94,131.93,0.04968386]
[1725296407711,0.05430421,131.96,131.93,0.04968386]
[1725296409206,3.7893,131.95,131.93,0.04968386]
[1725296409802,3.7894,131.94,131.93,0.04968386]
[1725296410608,7.55380266,131.94,131.93,0.04968386]
[1725296412513,3.7894,131.94,131.93,0.04968386]
[1725296412915,3.7892,131.95,131.93,11.69968386]
[1725296414215,3.84310421,131.96,131.93,11.69968386]
[1725296415016,3.7891,131.95,131.93,11.69968386]
[1725296415928,3.7894,131.94,131.93,0.04968386]
[1725296418624,3.7891,131.95,131.93,0.04968386]
[1725296419626,3.7891,131.95,131.93,11.69968386]
[1725296422427,0.05430421,131.96,131.93,11.69968386]
[1725296422428,0.05430421,131.96,131.94,11.65]
[1725296423324,0.05430421,131.96,131.94,15.4393]
[1725296424033,0.05430421,131.96,131.94,11.65]
[1725296424536,0.05430421,131.96,131.93,11.69968386]
[1725296424732,0.05430421,131.96,131.94,11.65]
[1725296426725,0.05430421,131.96,131.94,15.4393]
[1725296426924,0.05430421,131.96,131.94,11.65]
[1725296428226,41.7132806,132.16,131.94,11.65]
[1725296428227,96.79550209,132.05,131.94,11.65]
[1725296428527,1.3361,132.07,132.0,11.65]
[1725296428722,5.1841485,132.07,132.0,11.65]
[1725296429228,5.1841485,132.07,131.95,2.7876]
[1725296429229,0.05368137,132.05,132.02,0.05155945]
[1725296429428,11.65,132.06,132.02,0.05155945]
[1725296429633,0.05366383,132.05,132.02,0.05155945]
[1725296429933,3.7869,132.03,132.02,0.05155945]
[1725296430730,3.7866,132.04,132.02,0.05155945]
[1725296431437,0.05366383,132.05,132.02,0.05155945]
[1725296431438,3.7868,132.03,132.02,0.05155945]
[1725296433735,0.05366383,132.05,132.02,0.05155945]
[1725296434134,3.7866,132.04,132.02,0.05155945]
[1725296434841,3.84006383,132.05,132.02,0.05155945]
[1725296435031,0.05366383,132.05,132.02,0.05155945]
[1725296435339,3.7866,132.04,132.02,0.05155945]
[1725296435533,0.05366383,132.05,132.02,0.05155945]
[1725296435932,3.7868,132.03,132.02,0.05155945]
[1725296436337,3.7868,132.03,131.95,2.7876]
[1725296436535,11.65,132.0,131.94,11.65]
[1725296436835,3.70615862,132.0,131.94,11.65]
[1725296437039,11.65,132.02,131.94,11.65]
[1725296437236,3.7884,131.98,131.94,15.4392]
[1725296437633,3.7884,131.98,131.95,0.04930505]
[1725296437634,0.0581724,131.97,131.95,0.04930505]
[1725296438034,0.0581724,131.97,131.96,11.65]
[1725296440536,0.0581724,131.97,131.96,467.33495]
[1725296441545,1.3736,132.05,131.96,467.33495]
[1725296441751,2.7657,132.05,131.99,11.65]
[1725296442043,3.7874,132.01,131.98,11.65]
[1725296442240,13.0421,132.05,131.98,11.65]
[1725296442945,3.7875,132.01,131.98,11.65]
[1725296443141,13.0421,132.05,131.98,11.65]
[1725296443348,13.0421,132.05,131.96,455.68495]
[1725296443349,11.65,132.02,131.96,455.68495]
[1725296443647,0.05383548,132.0,131.98,0.05676202]
[1725296443842,0.05085839,132.0,131.98,0.05676202]
[1725296444146,3.83875839,132.0,131.98,0.05676202]
[1725296444841,3.7879,131.99,131.98,0.05676202]
[1725296446436,0.05085839,132.0,131.98,0.05676202]
[1725296447032,3.83865839,132.0,131.98,0.05676202]
[1725296447236,3.76023815,132.0,131.98,0.05676202]
[1725296448349,3.7879,131.99,131.98,0.05676202]
[1725296451752,3.83865839,132.0,131.98,0.05676202]
[1725296452057,0.05085839,132.0,131.98,11.70676202]
[1725296452347,3.7866,132.04,131.99,11.65]
[1725296452549,3.7866,132.04,132.02,11.65]
[1725296453352,1.3634,132.06,132.02,11.65]
[1725296453561,11.65,132.05,132.02,0.0580923]
[1725296453852,0.05189978,132.04,132.02,0.0580923]
[1725296454451,3.7868,132.03,132.02,0.0580923]
[1725296463362,3.83849978,132.04,132.02,0.0580923]
[1725296464359,0.05189978,132.04,132.02,0.0580923]
[1725296465363,0.05189978,132.04,132.02,3.8451923]
[1725296465558,0.05189978,132.04,132.03,11.65]
[1725296467957,1.3808,132.11,132.03,11.65]
[1725296468161,1.3808,132.11,132.05,11.65]
[1725296468456,3.785,132.1,132.07,11.65]
[1725296468861,3.785,132.1,132.07,11.70220164]
[1725296468862,3.83301896,132.1,132.07,11.70220164]
[1725296470364,0.04801896,132.1,132.08,11.65]
[1725296471955,0.04801896,132.1,132.08,15.4352]
[1725296472862,0.04801896,132.1,132.09,15.4351]
[1725296473461,3.7841,132.13,132.09,15.4351]
[1725296473658,3.77900037,132.15,132.11,11.65]
[1725296473857,1.4567,132.18,132.11,11.65]
[1725296474061,16.85319806,132.18,132.11,11.65]
[1725296474263,13.1067,132.18,132.11,11.65]
[1725296474468,1.4567,132.18,132.13,11.65]
[1725296474769,0.05379919,132.16,132.13,11.69974657]
[1725296475065,3.83709919,132.16,132.13,11.69974657]
[1725296476166,0.05379919,132.16,132.14,15.4335]
[1725296476757,3.7823,132.19,132.15,3.7833]
[1725296476969,3.74403815,132.19,132.15,11.65]
[1725296477164,11.65,132.22,132.15,11.65]
[1725296477757,0.05495962,132.2,132.17,0.05561843]
[1725296477963,3.7824,132.19,132.17,0.05561843]
[1725296478466,3.7825,132.18,132.17,0.05561843]
[1725296478766,29.06,132.18,132.11,29.06]
[1725296478968,1.4657,132.19,132.11,29.06]
[1725296479170,3.783,132.17,132.12,3.784]
[1725296479659,0.05318958,132.16,132.13,0.04809091]
[1725296481960,0.05318958,132.16,132.14,29.06]
[1725296482168,3.77848436,132.22,132.14,29.06]
[1725296482366,3.7822,132.2,132.16,3.783]
[1725296482565,7.55991891,132.2,132.16,3.783]
[1725296483169,0.05320883,132.19,132.17,0.05254854]
[1725296484264,3.7825,132.18,132.17,0.05254854]
[1725296484464,0.05320883,132.19,132.17,0.05254854]
[1725296485062,3.7825,132.18,132.17,0.05254854]
[1725296487366,3.83550883,132.19,132.17,0.05254854]
[1725296491087,0.05320883,132.19,132.17,29.11254854]
[1725296492486,0.05320883,132.19,132.17,0.05254854]
[1725296493176,3.83550883,132.19,132.17,0.05254854]
[1725296493679,0.05320883,132.19,132.17,0.05254854]
[1725296494981,3.83540883,132.19,132.17,0.05254854]
[1725296499879,3.83540883,132.19,132.17,11.67254854]
[1725296500485,0.05320883,132.19,132.17,11.67254854]
[1725296501185,0.05320883,132.19,132.18,3.7825]
[1725296501377,7.54350653,132.22,132.17,11.67254854]
[1725296501578,7.54350653,132.22,132.2,11.62]
[1725296502487,7.59360203,132.22,132.2,11.67299331]
[1725296502687,7.59360203,132.22,132.2,0.05299331]
[1725296502987,3.7816,132.21,132.2,0.05299331]
[1725296503489,3.81220203,132.22,132.2,11.67299331]
[1725296503694,3.81220203,132.22,132.2,0.05299331]
[1725296503881,3.7816,132.21,132.2,0.05299331]
[1725296510691,3.81220203,132.22,132.14,29.06]
[1725296510886,1.3266,132.21,132.14,29.06]
[1725296511591,0.0543131,132.19,132.16,0.05811837]
[1725296512193,3.8367131,132.19,132.16,0.05811837]
[1725296512394,0.0543131,132.19,132.16,0.05811837]
[1725296512899,3.8367131,132.19,132.16,0.05811837]
[1725296513591,0.0543131,132.19,132.17,29.06]
[1725296513995,3.7809,132.24,132.2,3.7818]
[1725296514300,7.65565437,132.24,132.21,29.06]
[1725296514497,3.87475437,132.24,132.21,29.06]
[1725296514692,2.7049,132.26,132.21,29.06]
[1725296514888,3.7811,132.23,132.22,0.05790488]
[1725296515088,7.56467922,132.23,132.22,0.05790488]
[1725296515399,3.7811,132.23,132.22,0.05790488]
[1725296525101,7.4830404,132.24,132.22,0.05790488]
[1725296526008,3.7811,132.23,132.22,0.05790488]
[1725296527004,3.7022404,132.24,132.22,0.05790488]
[1725296527599,11.65890337,132.25,132.22,0.05790488]
[1725296527812,15.42072168,132.25,132.22,0.05790488]
[1725296528105,3.7808,132.24,132.22,0.05790488]
[1725296528504,3.81072168,132.25,132.22,0.05790488]
[1725296530000,3.7811,132.23,132.22,0.05790488]
[1725296540220,3.7827,132.18,132.15,11.61]
[1725296540615,1.4443,132.22,132.16,11.61]
[1725296541017,3.7823,132.19,132.16,11.61]
[1725296541321,3.83569026,132.19,132.16,11.65963425]
[1725296547417,3.83569026,132.19,132.16,15.44263425]
[1725296547618,3.83569026,132.19,132.16,11.65963425]
[1725296550927,3.83569026,132.19,132.16,15.44263425]
[1725296551126,0.05339026,132.19,132.16,0.04963425]
[1725296551326,0.05339026,132.19,132.18,11.61]
[1725296551520,0.05339026,132.19,132.18,15.3925]
[1725296552828,3.7812,132.23,132.2,3.7819]
[1725296553931,3.83090407,132.23,132.2,3.83694386]
[1725296554129,0.04970407,132.23,132.2,3.83694386]
[1725296555239,0.04970407,132.23,132.21,3.7816]
[1725296557641,0.04970407,132.23,132.22,15.3913]
[1725296558145,87.68934255,132.3,132.22,11.61]
[1725296558342,87.68934255,132.3,132.24,15.3906]
[1725296558648,87.68934255,132.3,132.24,11.61]
[1725296558940,0.04872597,132.28,132.26,0.05512445]
[1725296560140,0.04872597,132.28,132.26,3.83532445]
[1725296560537,0.04872597,132.28,132.26,15.44532445]
[1725296560749,0.04872597,132.28,132.27,15.3899]
[1725296562948,3.85456885,132.33,132.3,3.779]
[1725296563148,3.7782,132.34,132.3,15.389]
[1725296563347,7.58433942,132.34,132.3,15.389]
[1725296563542,3.80613942,132.34,132.3,15.389]
[1725296563748,2.8148,132.35,132.3,15.389]
[1725296563952,0.05658669,132.33,132.31,0.04803363]
[1725296568456,11.61,132.32,132.31,0.04803363]
[1725296568955,15.3885,132.32,132.31,0.04803363]
[1725296570359,3.7785,132.32,132.31,0.04803363]
[1725296571160,5.27958669,132.33,132.31,0.04803363]
[1725296571464,0.05658669,132.33,132.31,0.04803363]
[1725296571763,0.05658669,132.33,132.31,11.65803363]
[1725296573954,0.05658669,132.33,132.31,29.07803363]
[1725296574155,0.05658669,132.33,132.31,32.85663363]
[1725296574461,0.05658669,132.33,132.31,29.07803363]
[1725296574849,0.05658669,132.33,132.32,3.7785]
[1725296577256,7.62385731,132.36,132.32,3.7785]
[1725296578262,0.0531774,132.35,132.32,3.7785]
[1725296579156,232.585,132.49,132.33,58.06]
[1725296579360,3.82824912,132.48,132.4,29.03]
[1725296579565,2.7445,132.48,132.4,29.03]
[1725296579770,3.7747,132.46,132.41,3.7758]
[1725296580262,225.0,132.54,132.44,29.03]
[1725296580461,4.0981,132.52,132.44,29.03]
[1725296580664,33.1281,132.52,132.43,32.8052]
[1725296580869,33.1281,132.52,132.46,0.05408011]
[1725296581770,4.0981,132.52,132.46,0.05408011]
[1725296582172,3.7731,132.51,132.46,0.05408011]
[1725296582373,4.0981,132.52,132.46,0.05408011]
[1725296582673,3.7735,132.5,132.46,0.05408011]
[1725296583168,4.0981,132.52,132.46,0.05408011]
[1725296583365,3.7733,132.51,132.46,0.05408011]
[1725296583966,7.871,132.52,132.46,3.82848011]
[1725296584364,4.0981,132.52,132.46,0.05408011]
[1725296584776,33.1281,132.52,132.46,0.05408011]
[1725296585169,40.7131,132.52,132.46,0.05408011]
[1725296585374,29.03,132.51,132.46,0.05408011]
[1725296585772,3.7738,132.49,132.46,0.05408011]
[1725296586375,3.7739,132.48,132.46,0.05408011]
[1725296586678,29.03,132.49,132.42,29.03]
[1725296586877,29.03,132.49,132.38,3.77387693]
[1725296587075,3.7747,132.46,132.39,29.03]
[1725296587376,7.60142706,132.46,132.39,29.03]
[1725296587573,3.7747,132.46,132.41,3.7758]
[1725296588174,0.05314644,132.45,132.42,0.04783418]
[1725296590072,0.05314644,132.45,132.42,3.82323418]
[1725296590274,0.05314644,132.45,132.42,0.04783418]
[1725296590776,29.03,132.43,132.27,11.34511995]
[1725296590979,29.03,132.43,132.35,29.03]
[1725296591184,3.7766,132.39,132.34,3.7777]
[1725296591381,3.7766,132.39,132.31,3.68750943]
[1725296591382,29.03,132.42,132.28,4.2019]
[1725296591574,29.03,132.42,132.32,29.03]
[1725296591778,3.7772,132.37,132.32,32.8083]
[1725296591979,3.78417157,132.36,132.32,29.03]
[1725296592171,3.83876388,132.36,132.34,0.05650272]
[1725296592375,0.05459231,132.36,132.34,0.05650272]
[1725296592774,3.89087081,132.36,132.34,0.05650272]
[1725296594783,7.66817081,132.36,132.34,0.05650272]
[1725296598186,3.7776,132.35,132.34,0.05650272]
[1725296598780,7.66837081,132.36,132.34,0.05650272]
[1725296598980,18.9038,132.52,132.35,29.03]
[1725296599178,18.9038,132.52,132.37,29.03]
[1725296599179,4.0192,132.45,132.37,29.03]
[1725296599384,4.0192,132.45,132.39,3.7764]
[1725296599890,7.7942,132.45,132.41,0.05381342]
[1725296600186,0.05335831,132.43,132.41,0.05381342]
[1725296600590,3.74707171,132.42,132.41,0.05381342]
[1725296600887,0.05335831,132.43,132.41,0.05381342]
[1725296601776,0.05335831,132.43,132.42,3.7756]
[1725296601983,0.05335831,132.43,132.41,0.05381342]
[1725296602579,0.05335831,132.43,132.42,3.7756]
[1725296606885,1.4563,132.49,132.46,3.7743]
[1725296607184,254.03,132.53,132.45,29.03]
[1725296607385,3.7736,132.5,132.45,29.03]
[1725296607686,3.7736,132.5,132.47,3.774]
[1725296608389,3.7736,132.5,132.47,3.83125879]
[1725296609593,3.7736,132.5,132.47,0.05725879]